bitfinex-derivatives/quotes_ETHF0:USTF0_20251203
["timestamp","ask_amount","ask_price","bid_price","bid_amount"]
[1764803889498,12.1627,3191.2,3190.8,3.788]
[1764803890198,12.1627,3191.2,3191.1,4.6178]
[1764803890595,3.2078,3191.2,3191.1,9.303]
[1764803891491,0.00470226,3191.4,3191.0,2.5728]
[1764803891492,0.00470226,3191.4,3191.3,9.303]
[1764803892299,8.95960226,3191.4,3190.9,6.9958]
[1764803892503,11.4571,3191.0,3190.9,3.788]
[1764803892901,8.9549,3190.9,3190.8,3.788]
[1764803893402,4.5223,3190.9,3190.8,8.4058]
[1764803893606,4.5223,3190.9,3190.8,13.091]
[1764803893804,8.9549,3190.8,3190.7,0.00360152]
[1764803894499,12.1627,3190.8,3190.7,0.00360152]
[1764803894692,12.42743918,3190.8,3190.7,0.00360152]
[1764803897708,8.9549,3190.2,3190.1,0.00470226]
[1764803898602,8.9549,3190.2,3190.1,0.00799873]
[1764803901210,8.9549,3190.2,3190.1,4.62579873]
[1764803901396,4.5223,3190.2,3190.1,9.31099873]
[1764803902010,8.9549,3190.2,3190.1,4.62579873]
[1764803902214,8.9549,3190.2,3190.1,0.00799873]
[1764803902912,8.9549,3190.2,3190.1,3.79599873]
[1764803904415,8.9549,3190.2,3190.1,8.41379873]
[1764803905611,8.9549,3190.2,3190.1,3.79599873]
[1764803906014,8.9549,3190.2,3190.1,8.41379873]
[1764803906618,8.9549,3190.2,3190.1,3.79599873]
[1764803907017,8.9549,3190.2,3190.1,0.00799873]
[1764803907709,4.5223,3190.2,3190.1,4.62579873]
[1764803907909,4.5223,3190.2,3190.1,9.31099873]
[1764803908110,2.5022,3190.5,3190.1,9.31099873]
[1764803908407,8.9549,3190.2,3190.1,0.00799873]
[1764803909319,4.78753707,3190.2,3190.1,9.31099873]
[1764803909508,9.22013707,3190.2,3190.1,9.31099873]
[1764803909708,9.22013707,3190.2,3190.1,0.00799873]
[1764803910513,9.22013707,3190.2,3190.1,9.31099873]
[1764803912122,4.78753707,3190.2,3190.1,9.31099873]
[1764803913321,9.22013707,3190.2,3190.1,4.62579873]
[1764803913520,9.22013707,3190.2,3190.1,0.00799873]
[1764803914225,9.22013707,3190.2,3190.1,8.93209873]
[1764803914417,4.78753707,3190.2,3190.1,8.93209873]
[1764803914724,0.26523707,3190.2,3190.1,8.93209873]
[1764803914926,7.8025,3190.4,3190.3,8.9241]
[1764803915116,12.6305478,3190.4,3190.3,8.9241]
[1764803915823,9.1574,3190.2,3190.1,0.00799873]
[1764803916421,9.1574,3189.7,3189.4,0.81716284]
[1764803916624,4.5627,3189.4,3189.3,4.4437]
[1764803916918,9.1574,3189.4,3189.3,5.27215803]
[1764803917220,9.1574,3189.4,3189.3,9.75255803]
[1764803917420,0.00347627,3189.4,3189.3,9.75639886]
[1764803917624,0.00470226,3189.7,3189.6,8.9241]
[1764803917823,1e-08,3189.7,3189.6,9.75255803]
[1764803918423,4.59470001,3189.7,3189.6,9.75255803]
[1764803918619,9.16038083,3189.7,3189.6,9.75255803]
[1764803918819,4.59768083,3189.7,3189.6,9.75255803]
[1764803919127,0.00298083,3189.7,3189.6,9.75255803]
[1764803919625,9.16038083,3189.7,3189.6,9.75255803]
[1764803919822,4.59768083,3189.7,3189.6,9.75255803]
[1764803920926,0.00298083,3189.7,3189.6,9.75255803]
[1764803922323,9.16038083,3189.7,3189.6,9.75255803]
[1764803922529,9.16038083,3189.7,3189.6,0.82845803]
[1764803922830,9.4261642,3189.7,3189.6,5.27215803]
[1764803923029,4.8634642,3189.7,3189.6,9.75255803]
[1764803923219,0.26888659,3189.7,3189.6,9.75255803]
[1764803923521,0.00298083,3189.7,3189.6,12.96035803]
[1764803923928,0.00298083,3189.7,3189.6,13.78717234]
[1764803924322,0.00298083,3189.7,3189.6,18.96035803]
[1764803924525,0.26590199,3190.2,3190.1,8.2847]
[1764803924831,3.2078,3190.7,3190.6,7.6949]
[1764803925026,3.47372697,3190.7,3190.6,7.6949]
[1764803925519,3.47637379,3190.7,3190.6,7.6949]
[1764803926232,0.26857379,3190.7,3190.6,7.6949]
[1764803926433,8.02637379,3190.7,3190.6,7.6949]
[1764803926623,8.02637379,3190.7,3190.6,3.8539]
[1764803927433,8.02637379,3190.7,3190.6,7.6949]
[1764803927930,8.02637379,3190.7,3190.6,3.8539]
[1764803928131,0.26857379,3190.7,3190.6,8.52376179]
[1764803928327,0.00264682,3190.7,3190.6,8.52376179]
[1764803929231,7.76044682,3190.7,3190.6,8.52376179]
[1764803929432,8.02625939,3190.7,3190.6,8.52376179]
[1764803930132,8.02625939,3190.7,3190.6,0.82886179]
[1764803930433,7.7578,3190.3,3190.2,7.6949]
[1764803930633,9.9986,3190.5,3190.4,7.6949]
[1764803930833,10.26426172,3190.5,3190.4,0.82846846]
[1764803931036,7.7578,3190.1,3190.0,7.0617]
[1764803931233,6.1692,3190.5,3190.4,3.8539]
[1764803931442,10.26426566,3190.5,3190.4,7.6949]
[1764803932026,2.50646566,3190.5,3190.0,7.6949]
[1764803932239,2.50646566,3190.5,3190.3,7.6949]
[1764803932240,8.02346566,3190.4,3190.3,7.6949]
[1764803933025,7.7578,3189.6,3189.5,0.82818907]
[1764803933233,8.02350781,3189.6,3189.5,4.6823477]
[1764803933635,8.02350781,3189.6,3189.5,8.5233477]
[1764803933838,4.19410781,3189.6,3189.5,8.5233477]
[1764803934338,8.02350781,3189.6,3189.5,0.8284477]
[1764803934532,8.02350781,3189.6,3189.5,4.6823477]
[1764803936439,8.02350781,3189.6,3189.5,3.8539]
[1764803937035,7.7578,3189.4,3189.3,3.85774083]
[1764803937236,7.7578,3189.4,3189.3,4.68596937]
[1764803937440,7.7578,3189.4,3189.3,0.83206937]
[1764803937642,10.9656,3189.8,3189.7,3.8539]
[1764803937841,3.9284,3189.4,3189.3,7.69874083]
[1764803938041,7.7578,3189.4,3189.3,8.52695042]
[1764803938435,7.7578,3189.4,3189.3,0.83205042]
[1764803938635,3.9284,3189.4,3189.3,8.52695042]
[1764803939346,3.9284,3189.4,3189.3,7.69874083]
[1764803940047,7.7578,3189.4,3189.3,7.69874083]
[1764803940746,7.7578,3189.4,3189.3,3.85774083]
[1764803940939,9.9986,3189.5,3189.4,7.6949]
[1764803941137,10.26409357,3189.5,3189.4,7.6949]
[1764803941339,7.7578,3189.4,3189.3,0.00384083]
[1764803941535,3.47327086,3189.4,3189.0,0.00470226]
[1764803941745,10.45645483,3189.1,3189.0,0.00384084]
[1764803941950,10.72192569,3189.1,3189.0,0.00384084]
[1764803942342,3.8294,3188.5,3188.1,1.04775962]
[1764803942542,7.7578,3188.2,3188.1,0.21088434]
[1764803942748,11.23467446,3188.2,3188.1,0.21088434]
[1764803943755,0.26907446,3188.2,3188.1,7.88238434]
[1764803943947,0.0036575,3188.2,3188.1,7.88238434]
[1764803944143,7.8277575,3188.2,3188.1,4.10388434]
[1764803944347,7.8277575,3188.2,3188.1,7.92148434]
[1764803944348,3.8863575,3188.2,3188.1,7.92148434]
[1764803944646,0.0036575,3188.2,3188.1,7.92148434]
[1764803950753,0.00470226,3188.5,3188.1,7.92148434]
[1764803950959,0.00470226,3188.5,3188.4,7.7106]
[1764803951358,3.88740226,3188.5,3188.4,7.7106]
[1764803951961,2.1627,3189.0,3188.4,10.9184]
[1764803952156,9.9868,3189.0,3188.9,3.893]
[1764803952563,9.9868,3189.0,3188.9,7.7106]
[1764803952764,9.9868,3189.0,3188.4,3.2078]
[1764803953064,2.17082042,3189.0,3188.4,10.9184]
[1764803953261,9.99492042,3189.0,3188.9,7.7106]
[1764803953463,0.00812042,3189.0,3188.9,7.7106]
[1764803954758,3.2078,3189.6,3189.5,7.7106]
[1764803954957,11.0319,3189.6,3189.5,7.7106]
[1764803955264,7.0905,3189.6,3189.5,7.7106]
[1764803955767,7.09342963,3189.6,3189.5,7.7106]
[1764803955958,11.03482963,3189.6,3189.0,1.4366]
[1764803956261,3.21072963,3189.6,3189.4,7.7106]
[1764803956464,0.00292963,3189.6,3189.5,7.7106]
[1764803957061,0.00292963,3189.6,3189.5,9.1472]
[1764803958363,0.00292963,3189.6,3189.5,7.7106]
[1764803959264,0.00292963,3189.6,3189.5,9.1472]
[1764803959968,0.00470226,3189.9,3189.8,7.7106]
[1764803960870,0.00848033,3189.9,3189.8,7.7106]
[1764803961571,3.89118033,3189.9,3189.8,7.7106]
[1764803962068,0.00848033,3189.9,3189.8,7.7106]
[1764803963167,7.8241,3189.6,3189.5,0.00470226]
[1764803963368,3.8827,3189.6,3189.5,7.71530226]
[1764803963873,0.00848033,3189.9,3189.5,7.71530226]
[1764803963874,3.89118033,3189.9,3189.8,7.7106]
[1764803964065,7.83258033,3189.9,3189.8,3.893]
[1764803964771,7.83258033,3189.9,3189.8,7.7106]
[1764803964772,0.00848033,3189.9,3189.8,7.7106]
[1764803965366,3.89118033,3189.9,3189.8,7.7106]
[1764803966164,0.00848033,3189.9,3189.8,7.7106]
[1764803967968,6.83958033,3189.9,3189.8,3.893]
[1764803968168,6.8311,3189.6,3189.5,6.78610226]
[1764803968574,6.8311,3189.6,3189.5,3.43230226]
[1764803969964,6.8311,3189.6,3189.5,0.00470226]
[1764803970163,6.8311,3189.6,3189.5,3.43230226]
[1764803970368,6.8311,3189.6,3189.5,6.78610226]
[1764803971171,6.8311,3189.6,3189.5,3.43230226]
[1764803971376,3.3848,3189.6,3189.5,6.78610226]
[1764803971574,6.83958033,3189.9,3189.8,3.4276]
[1764803972072,3.39328033,3189.9,3189.8,6.7814]
[1764803972277,3.3848,3189.6,3189.5,6.78610226]
[1764803972974,6.83958033,3189.9,3189.8,3.4276]
[1764803973576,6.6025,3189.6,3189.5,6.73320226]
[1764803974885,6.6025,3189.6,3189.5,3.43230226]
[1764803975284,6.6025,3189.6,3189.5,6.73320226]
[1764803977689,6.56918033,3189.9,3189.8,6.7213]
[1764803977887,6.56918033,3189.9,3189.8,3.4204]
[1764803978387,6.56918033,3189.9,3189.5,0.00470226]
[1764803978585,3.343,3189.6,3189.5,6.72600226]
[1764803978888,3.343,3189.6,3189.5,7.54661855]
[1764803978889,6.5607,3189.6,3189.5,7.54661855]
[1764803979978,3.343,3189.6,3189.5,7.54661855]
[1764803980578,6.56918033,3189.9,3189.8,3.4204]
[1764803980788,6.83460945,3189.9,3189.8,3.4204]
[1764803981894,0.00848033,3189.9,3189.8,7.54301176]
[1764803982188,6.5607,3189.9,3189.8,4.24211176]
[1764803982389,6.5607,3189.9,3189.8,7.54301176]
[1764803982982,6.56365963,3189.9,3189.8,7.54301176]
[1764803983186,6.56365963,3189.9,3189.8,8.37047849]
[1764803984182,3.34595963,3189.9,3189.8,8.37047849]
[1764803984887,3.34595963,3189.9,3189.6,4.31205209]
[1764803984888,6.82944406,3189.9,3189.7,3.788]
[1764803985081,6.58838443,3189.8,3189.7,3.788]
[1764803985887,6.3226,3189.6,3189.5,0.00470226]
[1764803986084,6.58838443,3189.6,3189.5,0.00470226]
[1764803990991,9.79618443,3189.6,3189.5,0.00470226]
[1764803999396,3.0569,3188.9,3188.8,6.1416]
[1764803999595,1.7856,3189.5,3188.9,6.1416]
[1764803999797,6.58818923,3189.4,3189.3,3.1378]
[1764804001199,3.0569,3189.1,3189.0,6.14630226]
[1764804001397,6.3226,3189.1,3189.0,6.96810831]
[1764804001598,6.3226,3189.1,3189.0,3.96430831]
[1764804001799,6.3226,3189.1,3189.0,0.82650831]
[1764804001999,6.3226,3189.1,3189.0,3.96430831]
[1764804002800,6.5881768,3189.1,3189.0,0.00470226]
[1764804003604,6.5881768,3189.1,3188.4,4.03526673]
[1764804003605,7.9804,3188.5,3188.4,3.2078]
[1764804003901,7.9804,3188.5,3188.4,4.02991444]
[1764804005106,3.2078,3188.8,3188.7,3.0553]
[1764804005302,9.84270698,3188.8,3188.7,3.0553]
[1764804005489,9.84270698,3188.8,3188.4,3.2078]
[1764804005490,8.0964,3188.5,3188.4,9.5023]
[1764804005696,8.0964,3188.5,3188.4,10.32409015]
[1764804006594,8.0964,3188.5,3188.4,7.08489015]
[1764804007296,8.0964,3188.5,3188.4,6.2631]
[1764804007504,3.1729,3188.2,3188.1,6.5100866]
[1764804007706,8.10110226,3188.5,3188.4,6.2945]
[1764804008699,0.00470226,3188.5,3188.4,6.2945]
[1764804009106,3.17760226,3188.5,3188.4,6.2945]
[1764804009402,3.1729,3188.2,3188.1,10.2980866]
[1764804009597,6.3694,3188.2,3188.1,11.11939974]
[1764804009800,3.1729,3188.2,3188.1,11.11939974]
[1764804010103,6.3694,3188.2,3188.1,11.11939974]
[1764804011300,3.1729,3188.2,3188.1,11.11939974]
[1764804011506,8.10110226,3188.5,3188.4,3.0553]
[1764804012005,8.10110226,3188.5,3188.4,6.2945]
[1764804012201,0.00470226,3188.5,3188.4,6.2945]
[1764804012505,0.00470226,3188.5,3188.4,7.11608696]
[1764804012909,0.00470226,3188.5,3188.4,10.90408696]
[1764804016202,3.17760226,3188.5,3188.4,10.90408696]
[1764804016402,4.90460226,3188.5,3188.4,10.90408696]
[1764804016596,8.10110226,3188.5,3188.4,10.90408696]
[1764804017105,8.10110226,3188.5,3188.4,0.82158696]
[1764804017305,9.93007529,3188.5,3188.4,0.82158696]
[1764804017505,6.3694,3188.3,3188.2,3.2078]
[1764804017704,6.3694,3188.3,3188.2,4.03006398]
[1764804019908,6.3694,3188.3,3188.2,7.08536398]
[1764804021512,6.3694,3188.3,3188.2,10.32456398]
[1764804022109,6.3694,3188.3,3188.2,7.08536398]
[1764804022414,8.19837303,3188.3,3188.2,4.03006398]
[1764804022712,8.19837303,3188.3,3188.2,3.2078]
[1764804022713,8.46410257,3188.3,3188.2,3.2078]
[1764804023819,8.46410257,3188.3,3188.1,0.2155866]
[1764804023820,6.3694,3188.2,3188.1,0.2155866]
[1764804024113,8.19837303,3187.9,3187.8,2.5723]
[1764804024409,8.51221087,3187.9,3187.8,2.5723]
[1764804024611,3.1729,3187.5,3187.4,3.2392]
[1764804024815,4.9348,3188.0,3187.4,9.5023]
[1764804025023,6.37277513,3187.5,3187.4,6.26629599]
[1764804025215,8.09977513,3187.5,3187.4,3.05849599]
[1764804025512,8.09977513,3187.5,3187.4,6.29769599]
[1764804025713,9.97685646,3187.5,3187.4,6.29769599]
[1764804025912,5.05335646,3187.5,3187.4,6.29769599]
[1764804026114,0.00337513,3187.5,3187.4,9.50549599]
[1764804026517,0.00337513,3187.5,3187.4,10.31859749]
[1764804026716,0.00337513,3187.5,3187.4,9.50549599]
[1764804026916,3.17627513,3187.5,3187.4,10.31859117]
[1764804027117,8.24985646,3187.5,3187.4,9.50549599]
[1764804027317,9.97685646,3187.5,3187.4,9.50549599]
[1764804027614,5.05335646,3187.5,3187.4,9.50549599]
[1764804028013,9.97685646,3187.5,3187.4,0.00319599]
[1764804028214,10.24238572,3187.5,3187.4,0.00319599]
[1764804028414,9.97685646,3187.5,3187.4,0.00319599]
[1764804030318,9.97685646,3187.5,3187.4,3.05849599]
[1764804030816,9.97685646,3187.5,3187.4,6.29769599]
[1764804032613,9.97685646,3187.5,3187.4,0.00319599]
[1764804033216,8.09977513,3187.5,3187.4,6.29769599]
[1764804033410,0.00337513,3187.5,3187.4,6.29769599]
[1764804034318,0.00337513,3187.5,3187.4,9.50549599]
[1764804034920,0.00337513,3187.5,3187.4,12.19491435]
[1764804035113,0.26526011,3188.1,3188.0,7.1627]
[1764804035317,5.9195,3187.6,3187.5,5.919]
[1764804036120,5.9195,3187.6,3187.5,2.9718]
[1764804036121,5.92176531,3187.6,3187.5,2.9718]
[1764804036320,5.92176531,3187.6,3187.4,3.21099599]
[1764804036321,7.5294,3187.5,3187.4,6.18279599]
[1764804036622,9.40648133,3187.5,3187.4,6.18279599]
[1764804036819,9.40648133,3187.5,3187.4,3.21099599]
[1764804038126,9.40648133,3187.5,3187.4,0.00319599]
[1764804038312,5.9195,3187.2,3187.1,2.38120226]
[1764804038519,6.18480285,3187.2,3187.1,1.416e-05]
[1764804038719,12.18480285,3187.2,3187.1,1.416e-05]
[1764804039321,6.18480285,3187.2,3187.1,0.00318594]
[1764804039822,3.33760285,3187.2,3187.1,0.00318594]
[1764804040016,6.09570285,3187.2,3187.1,0.00318594]
[1764804040218,6.09570285,3187.2,3187.1,2.87168594]
[1764804040417,6.09570285,3187.2,3187.1,0.00318594]
[1764804041823,6.09570285,3187.2,3186.2,0.81250236]
[1764804042123,2.70498346,3186.9,3186.3,0.81250236]
[1764804042322,2.70498346,3186.9,3186.1,3.2078]
[1764804042527,5.38970226,3186.8,3186.7,5.5998]
[1764804042714,5.38970226,3186.8,3186.1,3.2078]
[1764804042936,14.2259,3187.5,3186.1,3.2078]
[1764804042937,4.89345422,3188.1,3187.0,1.3498]
[1764804043216,8.59506531,3187.6,3187.5,5.5998]
[1764804043424,5.38726531,3187.6,3187.5,5.5998]
[1764804043626,1.5519,3187.5,3187.0,1.3498]
[1764804044027,6.9369,3187.5,3187.4,2.8685]
[1764804045429,2.6269,3187.2,3187.1,9.3878]
[1764804045722,2.6269,3187.5,3187.1,7.33377344]
[1764804045919,5.385,3187.5,3187.4,5.5998]
[1764804046115,3.21476757,3187.6,3187.5,5.5998]
[1764804046320,3.21476757,3187.6,3187.5,7.2748]
[1764804046716,5.8347,3188.1,3188.0,7.2748]
[1764804046921,3.2078,3188.1,3188.0,7.2748]
[1764804047334,10.3198,3188.5,3188.4,2.8685]
[1764804047523,10.58509572,3188.5,3188.4,2.8685]
[1764804047723,10.588806,3188.5,3188.4,2.87093946]
[1764804048630,10.588806,3188.5,3188.4,0.00243946]
[1764804050530,8.861806,3188.5,3188.4,2.87093946]
[1764804050733,10.479006,3188.5,3188.4,0.00243946]
[1764804057945,10.479006,3188.5,3188.4,3.946e-05]
[1764804060050,2.6269,3187.7,3187.6,12.5956]
[1764804060353,8.5928,3188.1,3188.0,2.8685]
[1764804060552,8.85831951,3188.1,3188.0,2.8685]
[1764804060748,10.73493347,3188.1,3188.0,2.8685]
[1764804060952,10.73493347,3188.1,3187.6,3.2078]
[1764804061153,5.65051951,3188.0,3187.9,5.5998]
[1764804061353,7.26771951,3188.0,3187.9,2.8685]
[1764804063047,5.385,3187.7,3187.6,5.60359955]
[1764804063252,7.26161396,3187.7,3187.6,2.87229955]
[1764804063650,7.26161396,3187.7,3187.6,5.60359955]
[1764804064348,5.385,3187.7,3187.6,5.60359955]
[1764804066157,5.385,3187.7,3187.6,5.56269955]
[1764804067550,5.385,3187.7,3187.6,0.00379955]
[1764804068057,10.0673,3188.0,3187.9,2.6929]
[1764804068353,10.33285017,3188.0,3187.9,2.6929]
[1764804068556,9.03145017,3188.0,3187.9,5.3833]
[1764804068852,3.47335017,3188.0,3187.9,5.3833]
[1764804069053,9.03145017,3188.0,3187.9,5.3833]
[1764804071059,6.23005017,3188.0,3187.9,5.3833]
[1764804071554,9.03145017,3188.0,3187.9,5.3833]
[1764804072254,9.03145017,3188.0,3187.9,6.19539932]
[1764804072450,9.03145017,3188.0,3187.9,5.3833]
[1764804072650,5.5581,3187.7,3187.6,5.38709955]
[1764804072850,5.82365017,3187.7,3187.6,6.19927657]
[1764804074252,3.02225017,3187.7,3187.6,6.19927657]
[1764804075262,5.82365017,3187.7,3187.6,6.19927657]
[1764804075654,3.02225017,3187.7,3187.6,6.19927657]
[1764804079157,5.82365017,3187.7,3187.6,6.19927657]
[1764804079953,3.02225017,3187.7,3187.6,6.19927657]
[1764804081260,5.82365017,3187.7,3187.6,6.19927657]
[1764804081462,5.82365017,3187.7,3187.6,3.50887657]
[1764804081664,5.82365017,3187.7,3187.6,6.19927657]
[1764804084661,5.82365017,3187.7,3187.6,0.81597657]
[1764804084865,5.82365017,3187.7,3187.6,0.00379955]
[1764804086065,5.82365017,3187.7,3187.6,2.69669955]
[1764804086457,7.65382716,3187.7,3187.6,5.38709955]
[1764804086655,7.65382716,3187.7,3187.6,2.69669955]
[1764804086970,7.65382716,3187.7,3187.6,0.00379955]
[1764804089572,7.65382716,3187.7,3187.6,2.69669955]
[1764804090370,7.65382716,3187.7,3187.6,0.00379955]
[1764804091268,5.5581,3187.1,3187.0,3.52311113]
[1764804091571,7.67782089,3187.1,3187.0,0.81291785]
[1764804092365,7.67782089,3187.1,3187.0,0.81695996]
[1764804092768,7.67782089,3187.1,3187.0,0.00404211]
[1764804095075,7.67782089,3187.1,3187.0,2.72264211]
[1764804095566,7.67782089,3187.1,3187.0,0.00404211]
[1764804096375,7.67782089,3187.1,3187.0,2.72264211]
[1764804097068,7.67782089,3187.1,3187.0,0.00404211]
[1764804097671,7.67782089,3187.1,3187.0,2.72264211]
[1764804097869,7.67782089,3187.1,3187.0,0.00404211]
[1764804098266,7.67782089,3187.1,3186.9,0.00470226]
[1764804098267,6.271,3187.0,3186.9,0.00470226]
[1764804098463,9.7683439,3187.0,3186.9,0.00470226]
[1764804098668,6.4801,3186.5,3186.4,3.2078]
[1764804098876,4.7015,3186.1,3186.0,9.6456]
[1764804099171,6.53548334,3186.1,3186.0,6.33853006]
[1764804099363,4.99417836,3186.1,3186.0,4.76628851]
[1764804100378,4.70530635,3186.1,3186.0,4.76628851]
[1764804101476,4.70530635,3186.1,3186.0,6.16308851]
[1764804102278,4.99385525,3186.1,3186.0,0.00348851]
[1764804102780,4.70530635,3186.1,3186.0,0.00348851]
[1764804103181,4.70530635,3186.1,3186.0,2.31908851]
[1764804103385,2.24150635,3186.1,3186.0,6.16308851]
[1764804103585,0.00380635,3186.1,3186.0,9.37088851]
[1764804104880,0.00380635,3186.1,3186.0,13.15888851]
[1764804105779,4.70530635,3186.1,3186.0,9.95108851]
[1764804106579,4.70530635,3186.1,3186.0,6.10708851]
[1764804106873,4.70530635,3186.1,3186.0,8.55428851]
[1764804107488,4.70530635,3186.1,3186.0,4.76628851]
[1764804107683,0.00380635,3186.1,3186.0,6.16308851]
[1764804107886,3.2078,3186.7,3186.6,4.7628]
[1764804108784,4.06787699,3186.9,3186.8,4.7628]
[1764804109179,4.07140687,3186.9,3186.8,4.7628]
[1764804109379,6.53520687,3186.9,3186.8,4.7628]
[1764804109779,4.7015,3186.6,3186.5,7.9706]
[1764804110184,1.22790226,3187.0,3186.9,2.3156]
[1764804110185,0.00470226,3187.0,3186.9,2.3156]
[1764804110384,0.00470226,3187.0,3186.9,4.7628]
[1764804110682,0.00470226,3187.0,3186.9,7.9706]
[1764804111181,2.24634664,3187.0,3186.9,4.7628]
[1764804112693,0.00864664,3187.0,3186.9,4.7628]
[1764804113087,2.24634664,3187.0,3186.9,4.7628]
[1764804113685,4.71014664,3187.0,3186.9,4.7628]
[1764804113885,6.06794664,3187.0,3186.9,4.7628]
[1764804114887,6.06794664,3187.0,3186.5,5.43481113]
[1764804115086,4.7015,3186.6,3186.5,5.5234]
[1764804115291,4.7015,3186.6,3186.5,8.78255005]
[1764804116790,6.53167699,3186.8,3186.7,4.7628]
[1764804117185,4.7015,3186.6,3186.3,0.83021113]
[1764804117385,4.7015,3186.3,3186.2,4.7628]
[1764804117688,2.5266313,3186.3,3186.2,4.7628]
[1764804118493,0.2889313,3186.3,3186.2,4.7628]
[1764804118790,2.2377,3186.4,3186.3,4.7628]
[1764804118993,2.52664316,3186.4,3186.3,4.7628]
[1764804119183,4.99044316,3186.4,3186.3,4.7628]
[1764804119384,6.82062015,3186.4,3186.3,2.3156]
[1764804119794,4.7015,3186.1,3186.0,5.52688851]
[1764804119987,6.53167699,3186.1,3186.0,3.21128851]
[1764804120186,6.53167699,3186.1,3186.0,8.26958851]
[1764804120187,0.28900303,3186.1,3186.0,8.26958851]
[1764804120393,4.99055164,3186.1,3186.0,7.97408851]
[1764804120593,6.82072863,3186.1,3186.0,7.97408851]
[1764804120793,6.82072863,3186.1,3186.0,3.21128851]
[1764804121188,6.82072863,3186.1,3186.0,7.97408851]
[1764804121893,0.28905164,3186.1,3186.0,8.26958851]
[1764804122096,4.7015,3186.3,3186.2,4.7628]
[1764804122295,4.99057526,3186.3,3186.2,4.7628]
[1764804123193,2.52677526,3186.3,3186.2,4.7628]
[1764804123394,3.2078,3186.6,3186.5,5.8138]
[1764804123597,3.49683776,3186.6,3186.5,5.8138]
[1764804124191,8.18613776,3186.6,3186.5,4.7319]
[1764804124388,10.01631475,3186.6,3186.5,4.7319]
[1764804124798,6.80851475,3186.6,3186.5,4.7319]
[1764804124995,6.80851252,3186.6,3186.5,4.7319]
[1764804126297,0.28903553,3186.6,3186.5,5.8544]
[1764804126501,5.574,3186.8,3186.7,4.7319]
[1764804126699,0.28904138,3186.8,3186.7,4.7319]
[1764804127001,2.37484664,3187.0,3186.9,4.7319]
[1764804127194,6.03304664,3187.0,3186.9,5.54419338]
[1764804127395,6.03304664,3187.0,3186.9,4.7319]
[1764804127597,6.03304664,3187.0,3186.9,5.54393349]
[1764804127790,7.86322363,3187.0,3186.9,5.54393349]
[1764804127995,8.15218766,3187.0,3186.9,4.7319]
[1764804128402,6.32201067,3187.0,3186.9,4.7319]
[1764804128790,6.32201067,3187.0,3186.9,2.3915]
[1764804128998,4.6893,3186.6,3186.5,4.7319]
[1764804129206,4.6893,3186.6,3186.5,5.54407694]
[1764804129701,4.6893,3186.6,3186.5,0.81217694]
[1764804130004,4.6893,3186.3,3186.2,7.9397]
[1764804130195,4.6893,3186.3,3186.2,8.75207832]
[1764804130899,6.0244,3186.5,3186.4,4.7319]
[1764804131095,4.6893,3186.5,3186.4,5.54427832]
[1764804131295,4.55154664,3187.0,3186.5,1.1225]
[1764804131492,4.97834921,3186.9,3186.8,2.3915]
[1764804131705,4.97834921,3186.9,3186.2,4.03801113]
[1764804131908,4.6893,3186.4,3186.3,5.54440596]
[1764804132893,4.6893,3186.4,3186.3,6.99200596]
[1764804133291,4.6893,3186.4,3186.3,3.20400596]
[1764804133292,4.97839758,3186.4,3186.3,3.20400596]
[1764804134002,4.97845029,3186.4,3186.3,3.20400596]
[1764804134199,4.97845029,3186.4,3186.3,5.54440596]
[1764804134598,4.97845029,3186.4,3186.3,3.20400596]
[1764804135903,4.97845029,3186.4,3186.3,5.54440596]
[1764804140497,4.97845029,3186.4,3186.3,0.81250596]
[1764804141505,4.97845029,3186.4,3186.2,3.788]
[1764804141807,4.97845029,3186.3,3186.2,3.788]
[1764804141996,4.97845029,3186.3,3186.2,4.60194865]
[1764804143800,4.97845029,3186.3,3186.2,3.788]
[1764804145508,4.6893,3186.1,3186.0,0.00348851]
[1764804145807,4.97845029,3186.1,3186.0,5.5500969]
[1764804146602,4.97845029,3186.1,3186.0,0.8181969]
[1764804148508,4.97845029,3186.1,3186.0,0.00348851]
[1764804149413,4.97845029,3186.1,3185.1,0.83021113]
[1764804149414,4.6893,3185.2,3185.1,0.83021113]
[1764804149714,4.6893,3185.1,3185.0,6.42951113]
[1764804149908,2.3662,3185.1,3185.0,9.57893894]
[1764804150107,4.6893,3185.1,3185.0,9.57893894]
[1764804150409,1.87968673,3185.3,3185.0,4.0206486]
[1764804150709,6.56898673,3185.3,3185.2,4.7319]
[1764804150912,6.85825741,3185.3,3185.2,4.7319]
[1764804151103,2.16895741,3185.3,3185.2,4.7319]
[1764804151300,4.69400226,3185.4,3185.3,4.7319]
[1764804151505,4.69400226,3185.4,3185.0,0.00382079]
[1764804151506,4.6893,3185.1,3185.0,4.73572079]
[1764804151717,2.3662,3185.1,3185.0,4.73572079]
[1764804152115,1.87968673,3185.2,3185.1,4.7319]
[1764804152408,0.00470226,3185.4,3185.3,4.7319]
[1764804153404,2.37090226,3185.4,3185.3,4.7319]
[1764804153606,4.66460226,3185.4,3185.3,4.7319]
[1764804154313,0.00470226,3185.4,3185.3,4.7319]
[1764804155211,2.25060226,3185.4,3185.3,4.7319]
[1764804155411,2.25060226,3185.4,3185.3,4.6481]
[1764804155412,4.54430226,3185.4,3185.3,4.6481]
[1764804155712,4.5396,3185.1,3185.0,0.00382079]
[1764804156011,6.41928673,3185.1,3185.0,4.63792079]
[1764804156212,4.12558673,3185.1,3185.0,4.63792079]
[1764804156814,6.41928673,3185.1,3185.0,2.38132079]
[1764804157008,6.41928673,3185.1,3185.0,0.00382079]
[1764804157214,11.50677346,3185.1,3185.0,0.00382079]
[1764804157413,11.50677346,3185.1,3185.0,0.00089533]
[1764804157414,9.91592923,3185.1,3185.0,0.00089533]
[1764804157615,9.91592923,3185.1,3185.0,4.63499533]
[1764804158114,6.70812923,3185.1,3185.0,4.63499533]
[1764804158315,8.0362425,3185.1,3185.0,0.00089533]
[1764804160214,2.2222,3184.1,3184.0,5.55431113]
[1764804160418,6.0111,3184.5,3184.4,4.7241]
[1764804160715,1.4243,3184.5,3184.4,4.7241]
[1764804160916,1.4243,3184.5,3184.0,0.4743]
[1764804160917,7.7946,3184.7,3184.6,4.7241]
[1764804161322,7.79855167,3184.7,3184.6,4.72680933]
[1764804161919,7.79855167,3184.7,3184.6,0.00270933]
[1764804162121,7.79855167,3184.7,3184.6,2.35410933]
[1764804162314,7.79855167,3184.7,3184.6,4.72680933]
[1764804162515,7.79855167,3184.7,3184.6,0.00270933]
[1764804162819,7.79855167,3184.7,3184.6,4.72680933]